[Event "German-ch Women 2024"]
[Site "Ostfildern"]
[Date "2024.08.20"]
[Round "2.6"]
[White "Staerk, Elisa"]
[Black "Noll, Sonja"]
[Result "1-0"]
[ECO "A41"]
[WhiteElo "2002"]
[BlackElo "1810"]
[Annotator "RC"]
[PlyCount "125"]
[EventDate "2024.08.16"]
[EventType "tourn"]
[EventCountry "GER"]
[SourceTitle "playchess.com"]
[Source "ChessBase"]
[SourceQuality "1"]
[TimeControl "40/5400+30:1800+30"]

1. d4 {[%emt 0:00:03]} d6 {[%emt 0:00:20]} 2. Nf3 {[%emt 0:00:06]} g6 {[%emt 0:00:08]} 3. c4 {[%emt 0:00:05]} c5 {[%emt 0:00:30]} 4. g3 {[%emt 0:01:38]} cxd4 {[%emt 0:01:12]} 5. Nxd4 {[%emt 0:01:24]} Bg7 {[%emt 0:01:25]} 6. Nc3 {[%emt 0:05:28]} Qb6 {[%emt 0:06:52]} 7. e3 {[%emt 0:05:42]} Nf6 {[%emt 0:04:56]} 8. Qb3 {[%emt 0:03:02]} Qxb3 {[%emt 0:02:35]} 9. axb3 {[%emt 0:00:25]} Na6 {[%emt 0:05:14]} 10. Bg2 {[%emt 0:02:25]} Nc5 {[%emt 0:04:18]} 11. Ncb5 {[%emt 0:07:07]} O-O {[%emt 0:03:15]} 12. O-O {[%emt 0:05:15]} e5 {[%emt 0:02:24]} 13. Nc7 {[%emt 0:03:50]} Rb8 {[%emt 0:05:03]} 14. Ndb5 {[%emt 0:01:10]} Nxb3 {[%emt 0:04:04]} 15. Rxa7 {[%emt 0:02:29]} Rd8 {[%emt 0:03:43]} 16. e4 {[%emt 0:04:39]} Nc5 {[%emt 0:05:43]} 17. Bg5 {[%emt 0:02:01]} Ne6 {[%emt 0:08:51]} 18. Bxf6 {[%emt 0:03:23]} Bxf6 {[%emt 0:00:25]} 19. Nd5 {[%emt 0:00:41]} Kg7 {[%emt 0:04:28]} 20. Rd1 {[%emt 0:03:32]} Bd7 {[%emt 0:07:03]} 21. Ndc3 {[%emt 0:17:13]} Be7 {[%emt 0:03:57]} 22. Raa1 {[%emt 0:04:36]} Bc6 {[%emt 0:02:18]} 23. f3 {[%emt 0:06:37]} f5 {[%emt 0:05:14]} 24. Bh3 {[%emt 0:02:16]} Ng5 {[%emt 0:01:53]} 25. Bg2 {[%emt 0:00:20]} fxe4 {[%emt 0:02:07]} 26. fxe4 {[%emt 0:00:33]} Ne6 {[%emt 0:02:33]} 27. Rd2 {[%emt 0:02:41]} Rd7 {[%emt 0:02:09]} 28. Bh3 {[%emt 0:00:49]} Ng5 {[%emt 0:02:47]} 29. Bg2 {[%emt 0:03:01]} Rf8 {[%emt 0:00:14]} 30. Rad1 {[%emt 0:01:02]} Rf6 {[%emt 0:01:53]} 31. c5 {[%emt 0:03:37]} Nf7 {[%emt 0:01:30]} 32. b4 {[%emt 0:03:39]} Rd8 {[%emt 0:00:09]} 33. cxd6 {[%emt 0:02:08]} Nxd6 {[%emt 0:00:35]} 34. Nc7 {[%emt 0:00:53]} Nf7 {[%emt 0:00:34]} 35. Rxd8 {[%emt 0:00:35]} Bxd8 {[%emt 0:00:41]} 36. N7d5 {[%emt 0:00:38]} Rd6 {[%emt 0:02:00]} 37. b5 {[%emt 0:01:43]} Bd7 {[%emt 0:01:25]} 38. Kf1 {[%emt 0:01:16]} Ng5 {[%emt 0:01:35]} 39. h4 {[%emt 0:00:41]} Ne6 {[%emt 0:00:25]} 40. Bh3 {[%emt 0:00:15]} Be8 {[%emt 0:01:57]} 41. Bxe6 {[%emt 0:31:00]} Rxe6 {[%emt 0:30:50]} 42. Ra1 {[%emt 0:01:00]} Rd6 {[%emt 0:00:00]} 43. Ra7 {[%emt 0:00:00]} Rd7 {[%emt 0:00:00]} 44. Ke2 {[%emt 0:00:00]} g5 {[%emt 0:00:00]} 45. hxg5 {[%emt 0:00:00]} Bxg5 {[%emt 0:00:00]} 46. b6 {[%emt 0:00:00]} Bh5+ {[%emt 0:00:00]} 47. Kd3 {[%emt 0:00:00]} Bd8 {[%emt 0:00:00]} 48. Kc4 {[%emt 0:00:00]} Be8 {[%emt 0:00:00]} 49. Nb5 {[%emt 0:00:00]} Bg6 {[%emt 0:00:00]} 50. Nbc3 {[%emt 0:00:00]} Bf7 {[%emt 0:00:00]} 51. Kc5 {[%emt 0:00:00]} Bg6 {[%emt 0:00:00]} 52. Ra8 {[%emt 0:00:00]} Kh6 {[%emt 0:00:00]} 53. Rc8 {[%emt 0:00:00]} Kg5 {[%emt 0:00:43]} 54. Ne3 {[%emt 0:00:00]} Be7+ {[%emt 0:02:18]} 55. Kb5 {[%emt 0:00:03]} Rd4 {[%emt 0:01:34]} 56. Ned5 {[%emt 0:01:23]} Bf6 {[%emt 0:01:44]} 57. Nxf6 {[%emt 0:00:55]} Kxf6 {[%emt 0:00:04]} 58. Rc7 {[%emt 0:00:35]} Be8+ {[%emt 0:00:46]} 59. Kc5 {[%emt 0:00:52]} Bc6 {[%emt 0:00:11]} 60. Nd5+ {[%emt 0:00:53]} Kg5 {[%emt 0:00:38]} 61. Rxc6 {[%emt 0:00:16]} bxc6 {[%emt 0:00:38]} 62. b7 {[%emt 0:00:14]} cxd5 {[%emt 0:00:26]} 63. exd5 {[%emt 0:00:18]} 1-0

[Event "German-ch Women 2024"]
[Site "Ostfildern"]
[Date "2024.08.20"]
[Round "2.7"]
[White "Moutaqi, Sandra"]
[Black "Koeberl, Christiane"]
[Result "1-0"]
[ECO "A53"]
[WhiteElo "1961"]
[BlackElo "1745"]
[Annotator "NA RC"]
[PlyCount "83"]
[EventDate "2024.08.16"]
[EventType "tourn"]
[EventCountry "GER"]
[SourceTitle "playchess.com"]
[Source "ChessBase"]
[SourceQuality "1"]
[TimeControl "40/5400+30:1800+30"]

1. d4 {[%emt 0:00:02]} Nf6 {[%emt 0:00:02]} 2. c4 {[%emt 0:00:09]} d6 {[%emt 0:00:57]} 3. Nc3 {[%emt 0:00:17]} Nbd7 {[%emt 0:00:08]} 4. e4 {[%emt 0:00:59]} e5 {[%emt 0:00:06]} 5. d5 {[%emt 0:00:16]} c6 {[%emt 0:00:07]} 6. Bd3 {[%emt 0:02:40]} Be7 {[%emt 0:00:35] A53: Old Indian Defence without Nf3.} 7. Nge2 {[%emt 0:01:09]} a5 {[%emt 0:01:45]} 8. a3 {[%emt 0:01:58]} Nc5 {[%emt 0:00:49]} 9. Bc2 {[%emt 0:00:42]} Bg4 {[%emt 0:01:16]} 10. f3 {[%emt 0:00:46]} Bd7 {[%emt 0:00:52]} 11. O-O {[%emt 0:00:57]} Qc8 {[%emt 0:04:20]} 12. Be3 {[%emt 0:05:01]} cxd5 {[%emt 0:06:06]} 13. cxd5 {[%emt 0:02:53]} O-O {[%emt 0:00:51]} 14. Rc1 {[%emt 0:07:17]} a4 {[%emt 0:05:25]} 15. Kh1 {[%emt 0:04:18]} h6 {[%emt 0:01:14]} 16. Bxc5 {[%emt 0:02:28]} Qxc5 {[%emt 0:00:26]} 17. Bxa4 {[%emt 0:02:37]} Bxa4 {[%emt 0:00:49]} 18. Nxa4 {[%emt 0:00:10]} Qe3 {[%emt 0:04:28]} 19. Nac3 {[%emt 0:07:43]} Ne8 {[%emt 0:02:12]} 20. Qb3 {[%emt 0:04:50]} b6 $18 {[%emt 0:02:58]} (20... Qa7 $16 {was called for.} 21. Nb5 Qb6) 21. Ng3 {[%emt 0:03:11]} g6 {[%emt 0:05:33]} 22. Rfe1 {[%emt 0:06:43]} Qg5 {[%emt 0:02:19]} 23. Qxb6 {[%emt 0:01:55]} f5 {[%emt 0:00:52]} 24. exf5 {[%emt 0:02:16]} gxf5 {[%emt 0:00:04]} 25. Qb7 {[%emt 0:04:32]} Ng7 {[%emt 0:00:04]} 26. Rc2 {[%emt 0:04:22]} h5 {[%emt 0:02:45]} 27. Rg1 {[%emt 0:05:18]} Rfb8 {[%emt 0:02:32]} 28. Qd7 {[%emt 0:01:24]} Rd8 {[%emt 0:00:33]} 29. Qb5 {[%emt 0:00:39]} Rdb8 {[%emt 0:00:40]} 30. Qc4 {[%emt 0:02:05]} Rc8 {[%emt 0:00:35]} 31. Qd3 {[%emt 0:00:24]} h4 {[%emt 0:01:29]} 32. Nge2 {[%emt 0:00:35]} Nh5 {[%emt 0:03:46]} 33. g4 {[%emt 0:04:04]} hxg3 {[%emt 0:03:56]} 34. Nxg3 {[%emt 0:00:56]} Kh8 {[%emt 0:06:00]} 35. Nxf5 {[%emt 0:04:46]} Qf6 {[%emt 0:05:23]} 36. Nxe7 {[%emt 0:01:04]} Qxe7 {[%emt 0:00:02]} 37. Qg6 {[%emt 0:01:45]} Qh7 {[%emt 0:03:34]} 38. Qxh7+ {[%emt 0:02:33]} Kxh7 {[%emt 0:00:02]} 39. Rcg2 {[%emt 0:00:50]} Nf4 {[%emt 0:00:10]} 40. Rg7+ {[%emt 0:00:32]} Kh6 {[%emt 0:00:22]} 41. R7g4 {[%emt 0:32:27]} Kh5 {[%emt 0:30:52]} 42. Ne4 {[%emt 0:01:27]} 1-0

[Event "German-ch Women 2024"]
[Site "Ostfildern"]
[Date "2024.08.20"]
[Round "2.8"]
[White "Just, Anita"]
[Black "Albayrak, Aylin"]
[Result "1-0"]
[ECO "B46"]
[WhiteElo "1871"]
[BlackElo "1741"]
[Annotator "NA RC"]
[PlyCount "93"]
[EventDate "2024.08.16"]
[EventType "tourn"]
[EventCountry "GER"]
[SourceTitle "playchess.com"]
[Source "ChessBase"]
[SourceQuality "1"]
[TimeControl "40/5400+30:1800+30"]

1. e4 {[%emt 0:00:02]} c5 {[%emt 0:00:09]} 2. Nf3 {[%emt 0:00:05]} e6 {[%emt 0:00:21]} 3. d4 {[%emt 0:00:19]} cxd4 {[%emt 0:00:09]} 4. Nxd4 {[%emt 0:00:05]} Nc6 {[%emt 0:00:30]} 5. Nc3 {[%emt 0:00:26]} a6 {[%emt 0:00:24]} 6. Nxc6 {[%emt 0:01:04]} bxc6 {[%emt 0:00:19]} 7. Bd3 {[%emt 0:00:55]} Nf6 {[%emt 0:01:37] B46: Sicilian: Taimanov: 5 Nc3 a6.} 8. Qe2 {[%emt 0:01:13]} Bb4 {[%emt 0:00:32]} 9. Bd2 {[%emt 0:00:51]} O-O {[%emt 0:02:52]} 10. O-O {[%emt 0:03:20]} d5 {[%emt 0:01:59]} 11. e5 {[%emt 0:02:29]} Nd7 {[%emt 0:00:41]} 12. a3 {[%emt 0:23:48]} Ba5 {[%emt 0:03:04]} 13. b4 {[%emt 0:07:31]} Bc7 {[%emt 0:00:34]} 14. f4 {[%emt 0:00:29]} a5 {[%emt 0:02:36]} 15. Rab1 {[%emt 0:05:59]} axb4 {[%emt 0:04:48]} 16. axb4 {[%emt 0:00:10]} Bb6+ {[%emt 0:00:35]} 17. Kh1 {[%emt 0:00:19]} Bb7 {[%emt 0:05:00]} 18. Qh5 {[%emt 0:04:57]} g6 {[%emt 0:00:27]} 19. Qh6 {[%emt 0:00:37]} Qe7 {[%emt 0:06:00]} 20. Ne2 {[%emt 0:08:53]} Rfb8 {[%emt 0:07:48]} 21. Bc3 {[%emt 0:02:57]} Qf8 {[%emt 0:06:03]} 22. Qg5 {[%emt 0:00:51]} Bd8 {[%emt 0:00:41]} 23. Qg4 {[%emt 0:01:40]} Ba6 {[%emt 0:03:04]} 24. f5 {[%emt 0:07:46]} Bxd3 {[%emt 0:10:01]} 25. cxd3 {[%emt 0:05:20]} exf5 {[%emt 0:01:33]} 26. Rxf5 {[%emt 0:01:45]} Qe7 {[%emt 0:03:02]} 27. Rbf1 {[%emt 0:01:12]} f6 {[%emt 0:12:10]} 28. exf6 {[%emt 0:03:24]} Qf7 {[%emt 0:01:58]} 29. R5f2 {[%emt 0:03:32]} c5 {[%emt 0:01:56]} 30. bxc5 {[%emt 0:01:17]} Nxc5 {[%emt 0:00:30]} 31. Nf4 {[%emt 0:02:47]} Ra4 {[%emt 0:02:11]} 32. Qg3 {[%emt 0:01:18]} d4 {[%emt 0:02:46]} 33. Nxg6 {[%emt 0:03:04]} hxg6 {[%emt 0:05:58]} 34. Qxb8 {[%emt 0:00:15]} Ne6 {[%emt 0:02:15]} 35. Bb4 {[%emt 0:01:15]} Kh7 {[%emt 0:00:49]} 36. Rf3 {[%emt 0:00:45]} g5 {[%emt 0:01:13]} 37. Be7 {[%emt 0:06:20]} Bc7 {[%emt 0:05:06]} 38. Rh3+ {[%emt 0:00:00]} Kg6 {[%emt 0:00:57]} 39. Qh8 {[%emt 0:00:00]} Nf4 {[%emt 0:01:33]} 40. Qh6+ {[%emt 0:00:00]} Kf5 {[%emt 0:00:47]} 41. Qh7+ {[%emt 0:02:31]} Ke6 {[%emt 0:05:05]} 42. Re1+ {[%emt 0:03:14]} Be5 {[%emt 0:00:51]} 43. Qxf7+ {[%emt 0:00:06]} Kxf7 {[%emt 0:00:24]} 44. Rh7+ {[%emt 0:00:14]} Ke8 {[%emt 0:02:32]} 45. Bd6 {[%emt 0:02:30]} Nxd3 {[%emt 0:00:56]} 46. f7+ {[%emt 0:00:32]} Kd7 {[%emt 0:00:44]} 47. f8=Q+ {[%emt 0:00:13]} 1-0

[Event "German-ch Women 2024"]
[Site "Ostfildern"]
[Date "2024.08.20"]
[Round "2.9"]
[White "Bursan, Ana-Maria"]
[Black "Wartenberg, Alissa"]
[Result "1-0"]
[ECO "C25"]
[WhiteElo "1719"]
[BlackElo "1858"]
[Annotator "NA RC"]
[PlyCount "63"]
[EventDate "2024.08.16"]
[EventType "tourn"]
[EventCountry "GER"]
[SourceTitle "playchess.com"]
[Source "ChessBase"]
[SourceQuality "1"]
[TimeControl "40/5400+30:1800+30"]

1. e4 {[%emt 0:00:03]} e5 {[%emt 0:00:09]} 2. Nc3 {[%emt 0:00:08]} Nc6 {[%emt 0:00:07]} 3. f4 {[%emt 0:00:20]} exf4 {[%emt 0:00:07]} 4. Nf3 {[%emt 0:00:47]} g5 {[%emt 0:00:33]} 5. g3 {[%emt 0:01:07]} g4 {[%emt 0:01:20]} 6. Nh4 {[%emt 0:01:31]} f3 {[%emt 0:05:21]} 7. d4 {[%emt 0:02:24]} Bb4 {[%emt 0:14:03]} 8. d5 {[%emt 0:10:35]} Bxc3+ {[%emt 0:07:50]} 9. bxc3 {[%emt 0:00:16]} Ne5 {[%emt 0:07:45]} 10. Qd4 {[%emt 0:09:49]} Qf6 {[%emt 0:11:30]} 11. Bf4 {[%emt 0:06:17]} d6 {[%emt 0:02:39]} 12. Bb5+ {[%emt 0:05:54]} Bd7 {[%emt 0:08:12]} 13. Rb1 {[%emt 0:08:49]} b6 {[%emt 0:09:57]} 14. Kf2 {[%emt 0:08:55]} Bxb5 {[%emt 0:05:40]} 15. Rxb5 {[%emt 0:01:02]} Ng6 {[%emt 0:07:01]} 16. e5 {[%emt 0:09:21]} dxe5 {[%emt 0:02:56]} 17. Bxe5 {[%emt 0:03:53]} Nxe5 {[%emt 0:00:05]} 18. Re1 {[%emt 0:00:22]} O-O-O {[%emt 0:07:25]} 19. Rxe5 {[%emt 0:02:48]} Nh6 {[%emt 0:00:58]} 20. Qe4 {[%emt 0:03:26]} Qd6 {[%emt 0:01:13]} 21. c4 {[%emt 0:03:45]} a6 {[%emt 0:01:49]} 22. Rb3 {[%emt 0:00:58]} Kb8 {[%emt 0:01:26]} 23. a4 {[%emt 0:01:33]} a5 {[%emt 0:00:37]} 24. Rb5 {[%emt 0:00:57]} Kc8 {[%emt 0:01:15]} 25. c5 {[%emt 0:01:20]} bxc5 {[%emt 0:01:27]} 26. Rxa5 {[%emt 0:00:53]} c6 {[%emt 0:00:51]} 27. Re7 {[%emt 0:02:57]} Kb8 {[%emt 0:00:44]} 28. Rea7 {[%emt 0:03:44]} Qxd5 {[%emt 0:00:48]} 29. Ra8+ {[%emt 0:00:48]} Kc7 {[%emt 0:00:22]} 30. R5a7+ {[%emt 0:00:57]} Kb6 {[%emt 0:00:12]} 31. a5+ {[%emt 0:00:19]} Kb5 {[%emt 0:00:17]} 32. Rb7# {[%emt 0:00:09]} 1-0

[Event "German-ch Women 2024"]
[Site "Ostfildern"]
[Date "2024.08.20"]
[Round "2.10"]
[White "Moeller, Hannah"]
[Black "Sokyrko, Sofiia"]
[Result "1-0"]
[ECO "E09"]
[WhiteElo "1845"]
[BlackElo "1585"]
[Annotator "NA RC"]
[PlyCount "75"]
[EventDate "2024.08.16"]
[EventType "tourn"]
[EventCountry "GER"]
[SourceTitle "playchess.com"]
[Source "ChessBase"]
[SourceQuality "1"]
[TimeControl "40/5400+30:1800+30"]

1. Nf3 {[%emt 0:00:02]} d5 {[%emt 0:00:22]} 2. g3 {[%emt 0:00:02]} Nf6 {[%emt 0:00:43]} 3. Bg2 {[%emt 0:00:04]} e6 {[%emt 0:00:48]} 4. O-O {[%emt 0:00:13]} Be7 {[%emt 0:00:54]} 5. d4 {[%emt 0:00:42]} Nbd7 {[%emt 0:00:48]} 6. c4 {[%emt 0:00:37]} c6 {[%emt 0:03:01]} 7. b3 {[%emt 0:04:49]} O-O {[%emt 0:03:10]} 8. Nbd2 {[%emt 0:02:30]} b6 {[%emt 0:01:24]} 9. Bb2 {[%emt 0:02:18]} Bb7 {[%emt 0:00:32]} 10. Qc2 {[%emt 0:01:51]} Rc8 {[%emt 0:00:34]} 11. Rac1 {[%emt 0:01:44]} h6 {[%emt 0:03:13]} 12. Qb1 {[%emt 0:02:53]} Re8 {[%emt 0:19:18]} 13. e4 {[%emt 0:03:18]} Nf8 {[%emt 0:03:08]} 14. cxd5 {[%emt 0:04:53]} exd5 {[%emt 0:00:10]} 15. exd5 {[%emt 0:01:07]} Nxd5 {[%emt 0:01:05]} 16. Nc4 {[%emt 0:00:25]} Ng6 {[%emt 0:02:02]} 17. Nfe5 {[%emt 0:03:17]} Nxe5 {[%emt 0:02:36]} 18. dxe5 {[%emt 0:01:08]} b5 {[%emt 0:04:00]} 19. Rfd1 {[%emt 0:05:26]} Qc7 {[%emt 0:00:51]} 20. Bxd5 {[%emt 0:02:46]} cxd5 {[%emt 0:08:21]} 21. Nd6 {[%emt 0:01:02]} Qd7 {[%emt 0:00:17]} 22. Nxc8 {[%emt 0:00:54]} Rxc8 {[%emt 0:01:24]} 23. Rxc8+ {[%emt 0:01:26]} Bxc8 {[%emt 0:00:26]} 24. Qd3 {[%emt 0:00:32]} Bb7 {[%emt 0:00:12]} 25. Qd4 {[%emt 0:07:17]} Bf8 {[%emt 0:05:36]} 26. Rc1 {[%emt 0:09:17]} a6 {[%emt 0:02:43]} 27. Qe3 {[%emt 0:05:26]} Be7 {[%emt 0:01:44]} 28. Bd4 {[%emt 0:04:47]} Bg5 {[%emt 0:02:54]} 29. f4 {[%emt 0:34:14]} Be7 {[%emt 0:01:07]} 30. Qc3 {[%emt 0:00:00]} Bd8 {[%emt 0:00:33]} 31. Qc5 {[%emt 0:00:00]} Qg4 {[%emt 0:13:33]} 32. Qd6 {[%emt 0:00:00]} Bh4 {[%emt 0:00:43]} 33. Bf2 {[%emt 0:00:00]} d4 {[%emt 0:03:48]} 34. Qb8+ {[%emt 0:00:00]} Kh7 {[%emt 0:00:07]} 35. Qxb7 {[%emt 0:00:00]} f6 {[%emt 0:01:00]} 36. Qe4+ {[%emt 0:00:00]} f5 {[%emt 0:00:37]} 37. Qxd4 {[%emt 0:00:00]} g5 {[%emt 0:00:07]} 38. Qd7+ {[%emt 0:04:30]} 1-0

[Event "German-ch Women 2024"]
[Site "Ostfildern"]
[Date "2024.08.20"]
[Round "3.1"]
[White "Miljkovic, Jovana"]
[Black "Novikova, Margarita"]
[Result "1-0"]
[ECO "D13"]
[WhiteElo "2021"]
[BlackElo "1991"]
[Annotator "RC"]
[PlyCount "167"]
[EventDate "2024.08.16"]
[EventType "tourn"]
[EventCountry "GER"]
[SourceTitle "playchess.com"]
[Source "ChessBase"]
[SourceQuality "1"]
[TimeControl "40/5400+30:1800+30"]

1. Nf3 {[%emt 0:00:03]} d5 {[%emt 0:01:04]} 2. d4 {[%emt 0:00:08]} Nf6 {[%emt 0:02:35]} 3. c4 {[%emt 0:00:06]} c6 {[%emt 0:00:21]} 4. cxd5 {[%emt 0:00:12]} cxd5 {[%emt 0:00:06]} 5. Nc3 {[%emt 0:00:10]} Nc6 {[%emt 0:02:40]} 6. Bf4 {[%emt 0:00:40]} e6 {[%emt 0:14:40]} 7. e3 {[%emt 0:00:17]} Bb4 {[%emt 0:06:06]} 8. Bd3 {[%emt 0:01:04]} Qa5 {[%emt 0:01:25]} 9. Qb3 {[%emt 0:07:21]} O-O {[%emt 0:03:02]} 10. O-O {[%emt 0:00:16]} Nh5 {[%emt 0:10:44]} 11. Bg5 {[%emt 0:01:53]} Be7 {[%emt 0:05:09]} 12. Qd1 {[%emt 0:03:43]} Bxg5 {[%emt 0:02:22]} 13. Nxg5 {[%emt 0:06:18]} Nf6 {[%emt 0:01:11]} 14. f4 {[%emt 0:00:54]} g6 {[%emt 0:14:29]} 15. Qe1 {[%emt 0:03:06]} Qb4 {[%emt 0:04:15]} 16. Qe2 {[%emt 0:06:35]} Bd7 {[%emt 0:03:41]} 17. Nf3 {[%emt 0:02:48]} a6 {[%emt 0:03:15]} 18. Ne5 {[%emt 0:01:17]} Qd6 {[%emt 0:00:49]} 19. g4 {[%emt 0:02:55]} Nb4 {[%emt 0:02:48]} 20. g5 {[%emt 0:06:35]} Nh5 {[%emt 0:01:28]} 21. Bb1 {[%emt 0:01:25]} Nc6 {[%emt 0:07:27]} 22. Rf3 {[%emt 0:05:07]} f6 {[%emt 0:07:01]} 23. gxf6 {[%emt 0:04:04]} Rxf6 {[%emt 0:00:35]} 24. Qg2 {[%emt 0:10:27]} Be8 {[%emt 0:02:53]} 25. Qg5 {[%emt 0:05:20]} Kh8 {[%emt 0:00:37]} 26. Rh3 {[%emt 0:03:43]} Rf8 {[%emt 0:00:53]} 27. Qh6 {[%emt 0:19:07]} Nxe5 {[%emt 0:01:12]} 28. Rxh5 {[%emt 0:02:31]} Nf3+ {[%emt 0:00:12]} 29. Kf2 {[%emt 0:00:25]} Qe7 {[%emt 0:00:52]} 30. Rh3 {[%emt 0:01:00]} Nd2 {[%emt 0:00:33]} 31. Bxg6 {[%emt 0:01:23]} Bxg6 {[%emt 0:00:15]} 32. Qxg6 {[%emt 0:00:15]} Rg8 {[%emt 0:00:45]} 33. Qh6 {[%emt 0:01:11]} Rg7 {[%emt 0:00:16]} 34. Rg3 {[%emt 0:00:28]} Rag8 {[%emt 0:00:18]} 35. Rag1 {[%emt 0:00:54]} Rxg3 {[%emt 0:00:25]} 36. Rxg3 {[%emt 0:00:24]} Rxg3 {[%emt 0:01:05]} 37. hxg3 {[%emt 0:00:06]} b5 {[%emt 0:00:30]} 38. Qh4 {[%emt 0:01:44]} Qf8 {[%emt 0:00:31]} 39. Qg5 {[%emt 0:00:21]} Qf7 {[%emt 0:00:34]} 40. Ke2 {[%emt 0:02:19]} Nc4 {[%emt 0:00:17]} 41. b3 {[%emt 0:31:38]} Na3 {[%emt 0:09:10]} 42. g4 {[%emt 0:00:00]} b4 {[%emt 0:03:57]} 43. Na4 {[%emt 0:00:00]} Nb5 {[%emt 0:03:37]} 44. Kd2 {[%emt 0:00:00]} Qg6 {[%emt 0:10:55]} 45. Qxg6 hxg6 {[%emt 0:00:02]} 46. Nc5 {[%emt 0:00:00]} Nc7 {[%emt 0:00:40]} 47. Nd3 {[%emt 0:00:00]} a5 {[%emt 0:00:52]} 48. Ne5 {[%emt 0:00:00]} Nb5 {[%emt 0:02:11]} 49. Nxg6+ {[%emt 0:00:00]} Kg7 {[%emt 0:00:01]} 50. Ne5 {[%emt 0:00:00]} Nc3 {[%emt 0:00:45]} 51. Nc6 {[%emt 0:00:00]} Nxa2 {[%emt 0:01:08]} 52. Nxa5 {[%emt 0:00:00]} Kf6 {[%emt 0:01:24]} 53. Nc6 {[%emt 0:00:00]} Kf7 {[%emt 0:00:44]} 54. g5 {[%emt 0:00:00]} Kg6 {[%emt 0:00:44]} 55. Ne5+ {[%emt 0:00:00]} Kf5 {[%emt 0:01:47]} 56. Nf3 {[%emt 0:00:00]} Kg6 {[%emt 0:00:14]} 57. Kc2 {[%emt 0:00:00]} Kg7 {[%emt 0:00:15]} 58. Nd2 {[%emt 0:00:00]} Nc3 {[%emt 0:00:30]} 59. Kd3 {[%emt 0:00:00]} Nd1 {[%emt 0:00:54]} 60. Ke2 {[%emt 0:00:00]} Nc3+ {[%emt 0:00:22]} 61. Kf3 {[%emt 0:00:00]} Nb5 {[%emt 0:00:22]} 62. Kg4 {[%emt 0:00:00]} Kg6 {[%emt 0:00:35]} 63. Nf3 {[%emt 0:00:00]} Nc3 {[%emt 0:00:25]} 64. Ne5+ {[%emt 0:00:00]} Kg7 {[%emt 0:00:01]} 65. Nc6 {[%emt 0:00:00]} Na2 {[%emt 0:01:08]} 66. f5 {[%emt 0:00:00]} exf5+ 67. Kxf5 {[%emt 0:00:00]} Nc1 {[%emt 0:01:20]} 68. Nxb4 {[%emt 0:00:00]} Nxb3 {[%emt 0:00:00]} 69. Nxd5 {[%emt 0:00:00]} Nd2 {[%emt 0:00:10]} 70. Nf4 {[%emt 0:00:00]} Nc4 {[%emt 0:00:06]} 71. Nh5+ {[%emt 0:00:00]} Kg8 {[%emt 0:00:40]} 72. e4 {[%emt 0:00:23]} Ne3+ {[%emt 0:00:15]} 73. Ke6 {[%emt 0:00:14]} Kh7 {[%emt 0:00:18]} 74. Nf4 {[%emt 0:00:30]} Nc2 {[%emt 0:00:13]} 75. d5 {[%emt 0:00:13]} Nd4+ {[%emt 0:00:01]} 76. Kf7 {[%emt 0:00:11]} Nf3 {[%emt 0:00:18]} 77. g6+ {[%emt 0:01:38]} Kh6 {[%emt 0:00:07]} 78. Kf6 {[%emt 0:01:06]} Nd2 {[%emt 0:02:19]} 79. e5 {[%emt 0:00:29]} Nc4 {[%emt 0:00:17]} 80. Nd3 {[%emt 0:00:29]} Ne3 {[%emt 0:00:44]} 81. d6 {[%emt 0:00:31]} Ng2 {[%emt 0:00:51]} 82. g7 {[%emt 0:00:26]} Nf4 {[%emt 0:00:35]} 83. g8=Q {[%emt 0:00:24]} Nh5+ {[%emt 0:00:12]} 84. Kf7 {[%emt 0:00:35]} 1-0

[Event "German-ch Women 2024"]
[Site "Ostfildern"]
[Date "2024.08.20"]
[Round "3.2"]
[White "Braun, Kristin"]
[Black "Foltin, Alica"]
[Result "1-0"]
[ECO "C55"]
[WhiteElo "2001"]
[BlackElo "1722"]
[Annotator "NA RC"]
[PlyCount "77"]
[EventDate "2024.08.16"]
[EventType "tourn"]
[EventCountry "GER"]
[SourceTitle "playchess.com"]
[Source "ChessBase"]
[SourceQuality "1"]
[TimeControl "40/5400+30:1800+30"]

1. e4 {[%emt 0:00:01]} e5 {[%emt 0:00:05]} 2. Nf3 {[%emt 0:00:29]} Nc6 {[%emt 0:00:05]} 3. Bc4 {[%emt 0:00:07]} Nf6 {[%emt 0:00:22]} 4. d3 {[%emt 0:00:13]} h6 {[%emt 0:00:08]} 5. c3 {[%emt 0:00:35]} d6 {[%emt 0:01:11]} 6. Nbd2 {[%emt 0:00:48]} g5 {[%emt 0:00:14]} 7. h3 {[%emt 0:01:47]} Bg7 {[%emt 0:00:34]} 8. a4 {[%emt 0:04:13]} O-O {[%emt 0:02:32]} 9. Nf1 {[%emt 0:05:22]} Ne7 {[%emt 0:00:50]} 10. Ng3 {[%emt 0:01:13]} Ng6 {[%emt 0:03:20]} 11. Nf5 {[%emt 0:11:18]} d5 {[%emt 0:02:02]} 12. Nxg7 {[%emt 0:03:11]} dxe4 {[%emt 0:02:00]} 13. Nxg5 {[%emt 0:03:31]} hxg5 {[%emt 0:01:53]} 14. Nh5 {[%emt 0:00:14]} Nf4 {[%emt 0:11:58]} 15. Bxf4 {[%emt 0:03:48]} exf4 {[%emt 0:00:35]} 16. Nxf6+ {[%emt 0:00:49]} Qxf6 {[%emt 0:00:07]} 17. dxe4 {[%emt 0:00:21]} Re8 {[%emt 0:01:14]} 18. f3 {[%emt 0:01:55]} Qb6 {[%emt 0:01:38]} 19. Qd5 {[%emt 0:10:16]} Qg6 {[%emt 0:06:00]} 20. O-O-O {[%emt 0:04:50]} Be6 {[%emt 0:01:57]} 21. Qb5 {[%emt 0:01:20]} c6 {[%emt 0:07:01]} 22. Qb3 {[%emt 0:01:07]} Rad8 {[%emt 0:12:50]} 23. Rd4 {[%emt 0:06:51]} c5 {[%emt 0:04:04]} 24. Rdd1 {[%emt 0:00:16]} b6 {[%emt 0:11:01]} 25. Bd5 {[%emt 0:01:32]} Kg7 {[%emt 0:07:11]} 26. Rd2 {[%emt 0:03:21]} Bxd5 {[%emt 0:04:04]} 27. Rxd5 {[%emt 0:02:06]} Rd6 {[%emt 0:01:20]} 28. Rhd1 {[%emt 0:01:53]} Red8 {[%emt 0:03:48]} 29. c4 {[%emt 0:00:48]} Rxd5 {[%emt 0:02:57]} 30. Rxd5 {[%emt 0:01:44]} Rxd5 {[%emt 0:01:55]} 31. cxd5 {[%emt 0:00:01]} Qd6 {[%emt 0:00:31]} 32. Kd2 {[%emt 0:06:33]} Kf6 {[%emt 0:03:53]} 33. Qc3+ {[%emt 0:00:17]} Qe5 {[%emt 0:00:53]} 34. Kd3 {[%emt 0:02:49]} a6 {[%emt 0:00:51]} 35. Kc4 {[%emt 0:03:52]} Qxc3+ {[%emt 0:00:49]} 36. bxc3 {[%emt 0:00:21]} Ke5 {[%emt 0:00:45]} 37. a5 {[%emt 0:00:22]} bxa5 {[%emt 0:00:57]} 38. Kxc5 {[%emt 0:00:09]} a4 {[%emt 0:01:12]} 39. Kb4 {[%emt 0:00:21]} 1-0